[Event "Live Chess"]
[Site "Chess.com"]
[Date "2024.06.02"]
[Round "-"]
[White "PaulHumphreys"]
[Black "Frankie_Badacsonyi"]
[Result "0-1"]
[WhiteElo "1394"]
[BlackElo "2432"]
[TimeControl "300"]
[EndTime "16:42:33 PDT"]
[Termination "Frankie_Badacsonyi won by resignation"]

1. d4 {[%clk 0:04:57.5]} 1... g6 {[%clk 0:04:59.9]} 2. Nc3 {[%clk 0:04:56.5]}
2... Bg7 {[%clk 0:04:59.1]} 3. Bf4 {[%clk 0:04:55.2]} 3... c6 {[%clk 0:04:58.2]}
4. e4 {[%clk 0:04:54.7]} 4... d5 {[%clk 0:04:57.2]} 5. e5 {[%clk 0:04:53.9]}
5... h5 {[%clk 0:04:55.5]} 6. Nf3 {[%clk 0:04:48.9]} 6... Bg4 {[%clk 0:04:54.5]}
7. h3 {[%clk 0:04:47.6]} 7... Bxf3 {[%clk 0:04:53.6]} 8. Qxf3 {[%clk 0:04:46]}
8... e6 {[%clk 0:04:53.5]} 9. O-O-O {[%clk 0:04:42.6]} 9... Qa5 {[%clk
0:04:50.2]} 10. Bd3 {[%clk 0:04:31.9]} 10... Ne7 {[%clk 0:04:43.4]} 11. Bg5
{[%clk 0:04:27.7]} 11... Nd7 {[%clk 0:04:38]} 12. Bxe7 {[%clk 0:04:24.6]} 12...
Kxe7 {[%clk 0:04:37.9]} 13. g4 {[%clk 0:04:18.2]} 13... c5 {[%clk 0:04:30.2]}
14. gxh5 {[%clk 0:04:11.2]} 14... Rxh5 {[%clk 0:04:28]} 15. dxc5 {[%clk
0:03:39.6]} 15... Nxc5 {[%clk 0:04:26.9]} 16. Be2 {[%clk 0:03:19.2]} 16... Rc8
{[%clk 0:04:05.3]} 17. Qg3 {[%clk 0:03:05.5]} 17... Rxe5 {[%clk 0:03:56.9]} 18.
Qh4+ {[%clk 0:02:24]} 18... Bf6 {[%clk 0:03:53.6]} 19. Qh7 {[%clk 0:02:19.8]}
19... Na4 {[%clk 0:03:33.6]} 0-1

[Event "Live Chess"]
[Site "Chess.com"]
[Date "2024.06.02"]
[Round "-"]
[White "jk0110"]
[Black "educatedlad"]
[Result "0-1"]
[WhiteElo "1221"]
[BlackElo "1712"]
[TimeControl "300"]
[EndTime "16:43:02 PDT"]
[Termination "educatedlad won on time"]

1. e4 {[%clk 0:04:58.1]} 1... c5 {[%clk 0:04:58.8]} 2. d4 {[%clk 0:04:54.9]}
2... cxd4 {[%clk 0:04:53.9]} 3. c3 {[%clk 0:04:53.7]} 3... dxc3 {[%clk
0:04:53.8]} 4. Nxc3 {[%clk 0:04:52.5]} 4... Nc6 {[%clk 0:04:53.2]} 5. Nf3 {[%clk
0:04:50.3]} 5... e6 {[%clk 0:04:52.4]} 6. Bc4 {[%clk 0:04:46.8]} 6... a6 {[%clk
0:04:51.1]} 7. a4 {[%clk 0:04:43]} 7... Na5 {[%clk 0:04:44.6]} 8. Ba2 {[%clk
0:04:37.6]} 8... Bc5 {[%clk 0:04:40.1]} 9. O-O {[%clk 0:04:28.2]} 9... b6 {[%clk
0:04:30.9]} 10. Bf4 {[%clk 0:04:15.7]} 10... Ne7 {[%clk 0:04:24.9]} 11. Bd6
{[%clk 0:04:03.1]} 11... Bxd6 {[%clk 0:04:17.9]} 12. Qxd6 {[%clk 0:04:01.1]}
12... Nac6 {[%clk 0:04:17.8]} 13. e5 {[%clk 0:03:37.3]} 13... O-O {[%clk
0:04:11.7]} 14. Rac1 {[%clk 0:03:23.3]} 14... Nf5 {[%clk 0:04:10.2]} 15. Qd3
{[%clk 0:03:09]} 15... Nb4 {[%clk 0:04:07.8]} 16. Qd1 {[%clk 0:03:02.1]} 16...
Nxa2 {[%clk 0:04:06.3]} 17. Nxa2 {[%clk 0:03:02]} 17... Bb7 {[%clk 0:04:03.7]}
18. Rc3 {[%clk 0:02:49.3]} 18... Rc8 {[%clk 0:04:00.1]} 19. Qd2 {[%clk 0:02:26]}
19... Bxf3 {[%clk 0:03:57.2]} 20. Rxf3 {[%clk 0:02:22]} 20... Rc5 {[%clk
0:03:50.8]} 21. Nc3 {[%clk 0:02:16.1]} 21... Rxe5 {[%clk 0:03:46.4]} 22. Qf4
{[%clk 0:02:02]} 22... d6 {[%clk 0:03:42.3]} 23. Ne4 {[%clk 0:01:43.5]} 23...
Nd4 {[%clk 0:03:35.4]} 24. Nf6+ {[%clk 0:01:31.8]} 24... gxf6 {[%clk 0:03:22.1]}
25. Qxd4 {[%clk 0:01:20]} 25... Kh8 {[%clk 0:03:14.6]} 26. Rh3 {[%clk
0:01:11.5]} 26... Rg8 {[%clk 0:03:09.1]} 27. Qh4 {[%clk 0:00:56.2]} 27... Rg7
{[%clk 0:03:05.4]} 28. f4 {[%clk 0:00:47.2]} 28... Re2 {[%clk 0:02:56.9]} 29.
Rg3 {[%clk 0:00:23.1]} 29... Rxb2 {[%clk 0:02:49.3]} 30. Rxg7 {[%clk 0:00:17.4]}
30... Kxg7 {[%clk 0:02:49.2]} 31. Qg4+ {[%clk 0:00:13.4]} 31... Kh8 {[%clk
0:02:47.9]} 32. Rf3 {[%clk 0:00:12]} 32... Rb1+ {[%clk 0:02:46.3]} 33. Kf2
{[%clk 0:00:09.6]} 33... Qc8 {[%clk 0:02:38.6]} 34. Qh5 {[%clk 0:00:05.6]} 34...
Qc5+ {[%clk 0:02:30]} 35. Kg3 {[%clk 0:00:03.3]} 35... Qxh5 {[%clk 0:02:28]} 0-1

[Event "Live Chess"]
[Site "Chess.com"]
[Date "2024.06.02"]
[Round "-"]
[White "CheckThis4"]
[Black "Duke_of_Bebington"]
[Result "1-0"]
[WhiteElo "2693"]
[BlackElo "1632"]
[TimeControl "300"]
[EndTime "16:43:04 PDT"]
[Termination "CheckThis4 won by resignation"]

1. e4 {[%clk 0:04:56.8]} 1... e5 {[%clk 0:04:58.8]} 2. Nf3 {[%clk 0:04:55.4]}
2... Nf6 {[%clk 0:04:57.3]} 3. d4 {[%clk 0:04:52.3]} 3... Nxe4 {[%clk
0:04:54.9]} 4. dxe5 {[%clk 0:04:48.6]} 4... d5 {[%clk 0:04:53.8]} 5. Nbd2 {[%clk
0:04:46.2]} 5... Nc6 {[%clk 0:04:42.7]} 6. Bb5 {[%clk 0:04:28.6]} 6... Bc5
{[%clk 0:04:40.1]} 7. Nxe4 {[%clk 0:04:24]} 7... dxe4 {[%clk 0:04:36.6]} 8.
Bxc6+ {[%clk 0:04:16.2]} 8... bxc6 {[%clk 0:04:34.8]} 9. Qxd8+ {[%clk
0:04:15.3]} 9... Kxd8 {[%clk 0:04:32.9]} 10. Ng5 {[%clk 0:04:14.7]} 10... Be6
{[%clk 0:04:26.3]} 11. Nxe4 {[%clk 0:04:06.7]} 11... Be7 {[%clk 0:04:24]} 12.
Bf4 {[%clk 0:03:59.2]} 12... Kc8 {[%clk 0:04:22.7]} 13. O-O-O {[%clk 0:03:44.3]}
13... Kb7 {[%clk 0:04:21]} 14. b3 {[%clk 0:03:42.5]} 14... Rhd8 {[%clk
0:04:15.9]} 15. Kb2 {[%clk 0:03:40.7]} 15... Rd7 {[%clk 0:04:09.7]} 16. Bg5
{[%clk 0:03:32.5]} 16... Bxg5 {[%clk 0:03:54.7]} 17. Nxg5 {[%clk 0:03:28.7]}
17... Bf5 {[%clk 0:03:53.4]} 18. Rxd7 {[%clk 0:03:22.2]} 18... Bxd7 {[%clk
0:03:51.8]} 19. Rd1 {[%clk 0:03:04.2]} 19... Be6 {[%clk 0:03:41]} 20. Nxe6
{[%clk 0:02:58.6]} 20... fxe6 {[%clk 0:03:40.9]} 21. Rd7 {[%clk 0:02:57.1]}
21... Rf8 {[%clk 0:03:35.5]} 22. f3 {[%clk 0:02:55.5]} 22... Rf5 {[%clk
0:03:30.9]} 23. Rxg7 {[%clk 0:02:53.4]} 23... Rxe5 {[%clk 0:03:30.2]} 24. Rxh7
{[%clk 0:02:52.5]} 24... Re2 {[%clk 0:03:29.4]} 25. Rg7 {[%clk 0:02:51.2]} 25...
Kb6 {[%clk 0:03:27.1]} 26. h4 {[%clk 0:02:49.5]} 1-0

[Event "Live Chess"]
[Site "Chess.com"]
[Date "2024.06.02"]
[Round "-"]
[White "Rusty_Bridges"]
[Black "KeithArkell"]
[Result "0-1"]
[WhiteElo "1472"]
[BlackElo "2412"]
[TimeControl "300"]
[EndTime "16:43:15 PDT"]
[Termination "KeithArkell won by resignation"]

1. e4 {[%clk 0:04:56.5]} 1... c6 {[%clk 0:04:59.5]} 2. Nf3 {[%clk 0:04:53.8]}
2... d5 {[%clk 0:04:59.4]} 3. e5 {[%clk 0:04:50.2]} 3... Bg4 {[%clk 0:04:57.9]}
4. Be2 {[%clk 0:04:48.3]} 4... e6 {[%clk 0:04:57.2]} 5. d4 {[%clk 0:04:47.1]}
5... Bxf3 {[%clk 0:04:56.3]} 6. Bxf3 {[%clk 0:04:45.4]} 6... c5 {[%clk
0:04:55.9]} 7. dxc5 {[%clk 0:04:43.8]} 7... Nc6 {[%clk 0:04:53.5]} 8. O-O {[%clk
0:04:40.5]} 8... Bxc5 {[%clk 0:04:52.6]} 9. a3 {[%clk 0:04:32.2]} 9... Nxe5
{[%clk 0:04:51.3]} 10. Re1 {[%clk 0:04:28.5]} 10... Nxf3+ {[%clk 0:04:49.5]} 11.
Qxf3 {[%clk 0:04:27.3]} 11... Nf6 {[%clk 0:04:49.1]} 12. Nc3 {[%clk 0:04:24.8]}
12... O-O {[%clk 0:04:47.9]} 13. Bg5 {[%clk 0:04:22.7]} 13... Be7 {[%clk
0:04:47]} 14. Re2 {[%clk 0:04:17]} 14... Rc8 {[%clk 0:04:46]} 15. Rae1 {[%clk
0:04:14.6]} 15... a6 {[%clk 0:04:42.9]} 16. Nxd5 {[%clk 0:04:12.1]} 16... Nxd5
{[%clk 0:04:41.5]} 17. Bxe7 {[%clk 0:04:09.4]} 17... Nxe7 {[%clk 0:04:40.9]} 18.
Re4 {[%clk 0:03:51]} 18... Qd2 {[%clk 0:04:36.2]} 19. Qh5 {[%clk 0:03:43.7]}
19... g6 {[%clk 0:04:29.4]} 20. Qg5 {[%clk 0:03:37.5]} 20... Qxg5 {[%clk
0:04:27.8]} 0-1

[Event "Live Chess"]
[Site "Chess.com"]
[Date "2024.06.02"]
[Round "-"]
[White "gobbles19"]
[Black "stevochess11"]
[Result "1-0"]
[WhiteElo "2269"]
[BlackElo "1702"]
[TimeControl "300"]
[EndTime "16:43:53 PDT"]
[Termination "gobbles19 won by checkmate"]

1. e4 {[%clk 0:04:58.4]} 1... c5 {[%clk 0:04:58.3]} 2. d4 {[%clk 0:04:57]} 2...
cxd4 {[%clk 0:04:56.2]} 3. c3 {[%clk 0:04:56.7]} 3... Nc6 {[%clk 0:04:50.5]} 4.
Nf3 {[%clk 0:04:55]} 4... d6 {[%clk 0:04:44]} 5. Bc4 {[%clk 0:04:54.5]} 5... g6
{[%clk 0:04:39.6]} 6. O-O {[%clk 0:04:51.7]} 6... Bg7 {[%clk 0:04:38.5]} 7. cxd4
{[%clk 0:04:47.5]} 7... Bg4 {[%clk 0:04:31.7]} 8. Bxf7+ {[%clk 0:04:46.1]} 8...
Kxf7 {[%clk 0:04:23.6]} 9. Ng5+ {[%clk 0:04:45.3]} 9... Ke8 {[%clk 0:04:20.8]}
10. Qxg4 {[%clk 0:04:44.9]} 10... Nf6 {[%clk 0:04:19.3]} 11. Qe6 {[%clk
0:04:35.6]} 11... Rf8 {[%clk 0:04:14]} 12. Be3 {[%clk 0:04:31.2]} 12... Qd7
{[%clk 0:03:58.1]} 13. Qb3 {[%clk 0:04:29.2]} 13... h6 {[%clk 0:03:50]} 14. Ne6
{[%clk 0:04:27.9]} 14... Rf7 {[%clk 0:03:45.3]} 15. Nc3 {[%clk 0:04:24.3]} 15...
Ng4 {[%clk 0:03:38.5]} 16. Nxg7+ {[%clk 0:04:08.4]} 16... Rxg7 {[%clk
0:03:35.2]} 17. Nd5 {[%clk 0:04:00.1]} 17... e6 {[%clk 0:03:18]} 18. Nf4 {[%clk
0:03:54]} 18... Re7 {[%clk 0:03:10.4]} 19. Rac1 {[%clk 0:03:40.3]} 19... Kf7
{[%clk 0:03:03.8]} 20. d5 {[%clk 0:03:34.9]} 20... exd5 {[%clk 0:02:56.4]} 21.
Nxd5 {[%clk 0:03:33.8]} 21... Re6 {[%clk 0:02:51.5]} 22. Nf4 {[%clk 0:03:31]}
22... Re8 {[%clk 0:02:25]} 23. Nxe6 {[%clk 0:03:26.8]} 23... Qxe6 {[%clk
0:02:24.1]} 24. Qxe6+ {[%clk 0:03:25.1]} 24... Rxe6 {[%clk 0:02:24]} 25. h3
{[%clk 0:03:19]} 25... Nxe3 {[%clk 0:02:22.6]} 26. fxe3+ {[%clk 0:03:18.9]}
26... Kg7 {[%clk 0:02:21.7]} 27. Rc4 {[%clk 0:03:16.5]} 27... Ne5 {[%clk
0:02:19.8]} 28. Rb4 {[%clk 0:03:11.4]} 28... b6 {[%clk 0:02:18.4]} 29. Rd1
{[%clk 0:03:05.5]} 29... Nc6 {[%clk 0:02:15.4]} 30. Rc4 {[%clk 0:03:03.5]} 30...
Ne5 {[%clk 0:02:13.9]} 31. Rcd4 {[%clk 0:03:02.5]} 31... b5 {[%clk 0:02:08.5]}
32. Rxd6 {[%clk 0:03:01.2]} 32... Rxd6 {[%clk 0:02:07.5]} 33. Rxd6 {[%clk
0:03:01.1]} 33... Nc4 {[%clk 0:02:07]} 34. Rd7+ {[%clk 0:02:59.3]} 34... Kf6
{[%clk 0:02:06.2]} 35. Rxa7 {[%clk 0:02:58.9]} 35... Nxb2 {[%clk 0:02:03.9]} 36.
Rb7 {[%clk 0:02:58.4]} 36... Nd1 {[%clk 0:01:59]} 37. Rxb5 {[%clk 0:02:57.4]}
37... Nxe3 {[%clk 0:01:58.1]} 38. a4 {[%clk 0:02:56.3]} 38... Nc4 {[%clk
0:01:54.5]} 39. a5 {[%clk 0:02:54.8]} 39... Nd2 {[%clk 0:01:51.7]} 40. a6 {[%clk
0:02:53.9]} 40... Nxe4 {[%clk 0:01:49.8]} 41. a7 {[%clk 0:02:53.5]} 41... g5
{[%clk 0:01:47.5]} 42. a8=Q {[%clk 0:02:52.8]} 42... Kg6 {[%clk 0:01:47.4]} 43.
Qxe4+ {[%clk 0:02:51.2]} 43... Kh5 {[%clk 0:01:47.3]} 44. Qe8+ {[%clk
0:02:46.3]} 44... Kh4 {[%clk 0:01:46.2]} 45. Rb4+ {[%clk 0:02:45.8]} 45... g4
{[%clk 0:01:45]} 46. Rxg4# {[%clk 0:02:45.2]} 1-0

[Event "Live Chess"]
[Site "Chess.com"]
[Date "2024.06.02"]
[Round "-"]
[White "toog"]
[Black "IgorSchukin"]
[Result "1-0"]
[WhiteElo "2606"]
[BlackElo "1745"]
[TimeControl "300"]
[EndTime "16:44:25 PDT"]
[Termination "toog won on time"]

1. e4 {[%clk 0:04:56.5]} 1... c5 {[%clk 0:04:58.6]} 2. Nc3 {[%clk 0:04:54.3]}
2... e6 {[%clk 0:04:57.6]} 3. f4 {[%clk 0:04:52.5]} 3... Nc6 {[%clk 0:04:56.2]}
4. Nf3 {[%clk 0:04:51.8]} 4... d5 {[%clk 0:04:53.3]} 5. Bb5 {[%clk 0:04:50.8]}
5... d4 {[%clk 0:04:51.4]} 6. Ne2 {[%clk 0:04:48.8]} 6... Bd7 {[%clk 0:04:49.4]}
7. O-O {[%clk 0:04:47.2]} 7... Nf6 {[%clk 0:04:47.9]} 8. d3 {[%clk 0:04:45.9]}
8... Be7 {[%clk 0:04:45.8]} 9. a3 {[%clk 0:04:40.8]} 9... O-O {[%clk 0:04:43.7]}
10. Bc4 {[%clk 0:04:38.2]} 10... a6 {[%clk 0:04:35.6]} 11. Ba2 {[%clk
0:04:37.1]} 11... b5 {[%clk 0:04:34.5]} 12. h3 {[%clk 0:04:31.7]} 12... a5
{[%clk 0:04:19.8]} 13. Ng3 {[%clk 0:04:26.6]} 13... a4 {[%clk 0:04:14.2]} 14. f5
{[%clk 0:04:23.1]} 14... b4 {[%clk 0:04:11.2]} 15. Ng5 {[%clk 0:04:16.5]} 15...
Qb6 {[%clk 0:03:50.8]} 16. fxe6 {[%clk 0:04:06.3]} 16... Bxe6 {[%clk 0:03:40.8]}
17. Nxe6 {[%clk 0:04:01.1]} 17... fxe6 {[%clk 0:03:39]} 18. Bxe6+ {[%clk
0:04:01]} 18... Kh8 {[%clk 0:03:37.6]} 19. Bf4 {[%clk 0:03:57.2]} 19... bxa3
{[%clk 0:03:22]} 20. bxa3 {[%clk 0:03:55]} 20... Nd8 {[%clk 0:03:07.1]} 21. Bc4
{[%clk 0:03:52.7]} 21... Nc6 {[%clk 0:02:40.6]} 22. Nf5 {[%clk 0:03:50.6]} 22...
Rae8 {[%clk 0:02:30.1]} 23. Rb1 {[%clk 0:03:46.7]} 23... Qa7 {[%clk 0:02:24.3]}
24. Bb5 {[%clk 0:03:43.1]} 24... Rc8 {[%clk 0:02:18]} 25. Qe1 {[%clk 0:03:30.9]}
25... Nd8 {[%clk 0:01:49.8]} 26. Nxe7 {[%clk 0:03:25.4]} 26... Qxe7 {[%clk
0:01:47.8]} 27. Bxa4 {[%clk 0:03:25.1]} 27... Ne6 {[%clk 0:01:44.6]} 28. Bh2
{[%clk 0:03:21.1]} 28... c4 {[%clk 0:01:35.9]} 29. Bb5 {[%clk 0:03:19.6]} 29...
cxd3 {[%clk 0:01:31.8]} 30. cxd3 {[%clk 0:03:19.5]} 30... Qxa3 {[%clk
0:01:28.3]} 31. Bc4 {[%clk 0:03:17.7]} 31... Nc5 {[%clk 0:01:20.3]} 32. Bd6
{[%clk 0:03:13.8]} 32... Rfd8 {[%clk 0:01:12.9]} 33. Be7 {[%clk 0:03:03.4]}
33... Re8 {[%clk 0:01:07.6]} 34. Bxf6 {[%clk 0:02:58.9]} 34... gxf6 {[%clk
0:01:05.9]} 35. Qf2 {[%clk 0:02:58]} 35... Rf8 {[%clk 0:01:00.4]} 36. Qxd4
{[%clk 0:02:56.1]} 36... Rcd8 {[%clk 0:00:53.4]} 37. Qe3 {[%clk 0:02:52.6]}
37... Nxd3 {[%clk 0:00:46.7]} 38. Rb3 {[%clk 0:02:47]} 38... Qc5 {[%clk
0:00:42]} 39. Rxd3 {[%clk 0:02:43.6]} 39... Qxc4 {[%clk 0:00:31]} 40. Rxd8
{[%clk 0:02:42.2]} 40... Rxd8 {[%clk 0:00:29.3]} 41. Rxf6 {[%clk 0:02:36.3]}
41... Qd4 {[%clk 0:00:17.3]} 42. Qxd4 {[%clk 0:02:35.4]} 42... Rxd4 {[%clk
0:00:16.9]} 43. Rf4 {[%clk 0:02:34]} 43... Kg7 {[%clk 0:00:15.5]} 44. Kf2 {[%clk
0:02:33.3]} 44... Kg6 {[%clk 0:00:14.8]} 45. Kf3 {[%clk 0:02:32.4]} 45... h5
{[%clk 0:00:12.6]} 46. Rf5 {[%clk 0:02:30.6]} 46... Rd3+ {[%clk 0:00:10.3]} 47.
Kf2 {[%clk 0:02:29]} 47... h4 {[%clk 0:00:08.4]} 48. Rd5 {[%clk 0:02:27.2]}
48... Rxd5 {[%clk 0:00:05.2]} 49. exd5 {[%clk 0:02:27.1]} 49... Kf6 {[%clk
0:00:04.3]} 50. Kf3 {[%clk 0:02:26.8]} 50... Ke5 {[%clk 0:00:03.8]} 51. Kg4
{[%clk 0:02:26.7]} 51... Kxd5 {[%clk 0:00:03]} 52. Kxh4 {[%clk 0:02:26.6]} 52...
Ke6 {[%clk 0:00:02.6]} 53. Kg5 {[%clk 0:02:26.5]} 53... Kf7 {[%clk 0:00:02.2]}
54. Kh6 {[%clk 0:02:25.8]} 54... Kg8 {[%clk 0:00:01.5]} 55. g4 {[%clk
0:02:24.4]} 55... Kh8 {[%clk 0:00:01.1]} 56. g5 {[%clk 0:02:24.3]} 56... Kg8
{[%clk 0:00:00.7]} 57. h4 {[%clk 0:02:24.2]} 57... Kh8 {[%clk 0:00:00.3]} 58. h5
{[%clk 0:02:24.1]} 1-0

[Event "Live Chess"]
[Site "Chess.com"]
[Date "2024.06.02"]
[Round "-"]
[White "NebodarMatevich"]
[Black "Tushinskiy"]
[Result "0-1"]
[WhiteElo "1547"]
[BlackElo "2212"]
[TimeControl "300"]
[EndTime "16:45:01 PDT"]
[Termination "Tushinskiy won by resignation"]

1. e4 {[%clk 0:04:58.6]} 1... e5 {[%clk 0:04:41.9]} 2. d4 {[%clk 0:04:57.8]}
2... d6 {[%clk 0:04:41.8]} 3. dxe5 {[%clk 0:04:54.2]} 3... Nc6 {[%clk
0:04:39.8]} 4. exd6 {[%clk 0:04:53.3]} 4... Bxd6 {[%clk 0:04:39.7]} 5. Nc3
{[%clk 0:04:50.2]} 5... Qe7 {[%clk 0:04:38.5]} 6. Bd2 {[%clk 0:04:44.9]} 6...
Nf6 {[%clk 0:04:34.8]} 7. Qe2 {[%clk 0:04:44.1]} 7... Bd7 {[%clk 0:04:24.6]} 8.
O-O-O {[%clk 0:04:43.1]} 8... O-O-O {[%clk 0:04:23.2]} 9. f4 {[%clk 0:04:42.9]}
9... Bg4 {[%clk 0:04:21.7]} 10. Nf3 {[%clk 0:04:41.2]} 10... Nd4 {[%clk
0:04:20.6]} 11. e5 {[%clk 0:04:38.4]} 11... Nxe2+ {[%clk 0:04:18.3]} 12. Bxe2
{[%clk 0:04:36.5]} 12... Bxf3 {[%clk 0:04:09]} 13. Bxf3 {[%clk 0:04:35.7]} 13...
Bxe5 {[%clk 0:04:07.4]} 14. fxe5 {[%clk 0:04:35]} 14... Qxe5 {[%clk 0:04:06.1]}
15. Rhe1 {[%clk 0:04:32.9]} 15... Qxh2 {[%clk 0:04:04.3]} 16. Nb5 {[%clk
0:04:27.1]} 16... a6 {[%clk 0:04:02.2]} 17. Na7+ {[%clk 0:04:25.7]} 17... Kb8
{[%clk 0:04:00.8]} 18. Be3 {[%clk 0:04:18.6]} 18... Rxd1+ {[%clk 0:03:57.6]} 19.
Rxd1 {[%clk 0:04:18]} 19... Qe5 {[%clk 0:03:55.4]} 20. Bd4 {[%clk 0:04:11.7]}
20... Qf4+ {[%clk 0:03:50.3]} 21. Kb1 {[%clk 0:04:08.4]} 21... Rd8 {[%clk
0:03:47.3]} 22. Nc6+ {[%clk 0:04:05.6]} 22... bxc6 {[%clk 0:03:46.1]} 23. Ba7+
{[%clk 0:04:02.8]} 23... Kc8 {[%clk 0:03:44.9]} 24. Rxd8+ {[%clk 0:04:02.7]}
24... Kxd8 {[%clk 0:03:43.6]} 0-1

[Event "Live Chess"]
[Site "Chess.com"]
[Date "2024.06.02"]
[Round "-"]
[White "AlexanderMatlak"]
[Black "GEMdzq"]
[Result "1-0"]
[WhiteElo "2414"]
[BlackElo "2294"]
[TimeControl "300"]
[EndTime "16:45:05 PDT"]
[Termination "AlexanderMatlak won by resignation"]

1. c4 {[%clk 0:04:56.6]} 1... Nf6 {[%clk 0:04:58.7]} 2. Nf3 {[%clk 0:04:55.1]}
2... c5 {[%clk 0:04:53.8]} 3. Nc3 {[%clk 0:04:53.4]} 3... e6 {[%clk 0:04:50.4]}
4. g3 {[%clk 0:04:52.5]} 4... d5 {[%clk 0:04:49]} 5. cxd5 {[%clk 0:04:52.4]}
5... exd5 {[%clk 0:04:47.9]} 6. d4 {[%clk 0:04:51.8]} 6... Nc6 {[%clk
0:04:45.4]} 7. Bg2 {[%clk 0:04:51]} 7... Be7 {[%clk 0:04:43.5]} 8. O-O {[%clk
0:04:47.9]} 8... O-O {[%clk 0:04:42.6]} 9. h3 {[%clk 0:04:47.4]} 9... h6 {[%clk
0:04:39.5]} 10. Be3 {[%clk 0:04:45.2]} 10... c4 {[%clk 0:04:34.3]} 11. Ne5
{[%clk 0:04:43.5]} 11... Be6 {[%clk 0:04:30.7]} 12. f4 {[%clk 0:04:42.3]} 12...
Rc8 {[%clk 0:04:14.6]} 13. f5 {[%clk 0:04:38.6]} 13... Bd7 {[%clk 0:04:13.7]}
14. g4 {[%clk 0:04:28.1]} 14... Bb4 {[%clk 0:03:55]} 15. Nxd5 {[%clk 0:04:17.9]}
15... Nxd5 {[%clk 0:03:53.3]} 16. Bxd5 {[%clk 0:04:17.8]} 16... Nxe5 {[%clk
0:03:46.8]} 17. dxe5 {[%clk 0:04:17.7]} 17... Bc6 {[%clk 0:03:40.2]} 18. Bxc6
{[%clk 0:04:12.1]} 18... Rxc6 {[%clk 0:03:40.1]} 19. Qxd8 {[%clk 0:04:05.2]}
19... Rxd8 {[%clk 0:03:40]} 20. Rfd1 {[%clk 0:04:02.2]} 20... Re8 {[%clk
0:03:39]} 21. Bd4 {[%clk 0:03:42.5]} 21... Bc5 {[%clk 0:03:36.5]} 22. Rac1
{[%clk 0:03:24.4]} 22... Bxd4+ {[%clk 0:03:33.5]} 23. Rxd4 {[%clk 0:03:23.3]}
23... Rxe5 {[%clk 0:03:28.5]} 24. Kf2 {[%clk 0:03:21.6]} 24... Rb5 {[%clk
0:03:14.9]} 25. Rc2 {[%clk 0:03:18.5]} 25... Rc7 {[%clk 0:03:08.7]} 26. e3
{[%clk 0:02:49.3]} 26... Rbc5 {[%clk 0:03:05.3]} 27. Ke2 {[%clk 0:02:41.6]}
27... Kf8 {[%clk 0:03:02]} 28. Kd2 {[%clk 0:02:38.7]} 28... Ke7 {[%clk
0:03:00.2]} 29. Kc3 {[%clk 0:02:24.1]} 29... a5 {[%clk 0:02:52.8]} 30. a4 {[%clk
0:02:21.2]} 30... Re5 {[%clk 0:02:39.9]} 31. e4 {[%clk 0:02:16.5]} 31... Rec5
{[%clk 0:02:09.9]} 32. Rcd2 {[%clk 0:02:10.9]} 32... Kf6 {[%clk 0:02:07.8]} 33.
Rd5 {[%clk 0:02:08.9]} 33... Kg5 {[%clk 0:02:01.2]} 34. e5 {[%clk 0:02:01.2]}
34... h5 {[%clk 0:01:58.2]} 35. e6 {[%clk 0:01:48.6]} 35... Rxd5 {[%clk
0:01:44]} 36. Rxd5 {[%clk 0:01:46.4]} 36... hxg4 {[%clk 0:01:42.9]} 37. hxg4
{[%clk 0:01:37.9]} 37... fxe6 {[%clk 0:00:59.8]} 38. fxe6+ {[%clk 0:01:37.8]}
38... Kxg4 {[%clk 0:00:57.7]} 39. Rd7 {[%clk 0:01:36.6]} 39... Rc6 {[%clk
0:00:55.5]} 40. Rxg7+ {[%clk 0:01:33.3]} 40... Kf5 {[%clk 0:00:54.7]} 41. Rxb7
{[%clk 0:01:18.8]} 41... Kxe6 {[%clk 0:00:51.5]} 42. Rb5 {[%clk 0:01:18.3]}
42... Kd6 {[%clk 0:00:48.3]} 43. Rxa5 {[%clk 0:01:17.4]} 43... Rc8 {[%clk
0:00:45.8]} 44. Rb5 {[%clk 0:01:12.9]} 44... Rc7 {[%clk 0:00:39.8]} 45. Kd4
{[%clk 0:01:05.8]} 45... Ra7 {[%clk 0:00:27.5]} 46. Rb4 {[%clk 0:01:02]} 46...
c3 {[%clk 0:00:24.1]} 47. bxc3 {[%clk 0:01:00.1]} 47... Kc6 {[%clk 0:00:23.2]}
48. Kc4 {[%clk 0:00:57.9]} 48... Rh7 {[%clk 0:00:21.1]} 49. Kb3 {[%clk
0:00:56.8]} 49... Rh1 {[%clk 0:00:19.6]} 50. a5 {[%clk 0:00:55.2]} 50... Rb1+
{[%clk 0:00:18.1]} 51. Kc4 {[%clk 0:00:46.5]} 51... Ra1 {[%clk 0:00:17.4]} 52.
Rb6+ {[%clk 0:00:45]} 52... Kc7 {[%clk 0:00:16.7]} 53. Rb5 {[%clk 0:00:44.6]}
53... Ra4+ {[%clk 0:00:14.7]} 54. Kc5 {[%clk 0:00:44.1]} 54... Ra3 {[%clk
0:00:14.1]} 55. c4 {[%clk 0:00:43.5]} 55... Ra1 {[%clk 0:00:13.2]} 56. Kb4
{[%clk 0:00:37.2]} 56... Rb1+ {[%clk 0:00:12.6]} 57. Kc3 {[%clk 0:00:36.4]}
57... Rc1+ {[%clk 0:00:12.1]} 58. Kd4 {[%clk 0:00:35.8]} 58... Rd1+ {[%clk
0:00:11.6]} 59. Ke3 {[%clk 0:00:33]} 59... Ra1 {[%clk 0:00:11.5]} 60. Rh5 {[%clk
0:00:29.5]} 60... Ra3+ {[%clk 0:00:10.5]} 61. Kd4 {[%clk 0:00:28.7]} 61... Ra1
{[%clk 0:00:10.3]} 62. Rg5 {[%clk 0:00:24.9]} 62... Kc6 {[%clk 0:00:09.9]} 63.
a6 {[%clk 0:00:22.5]} 63... Rxa6 {[%clk 0:00:08]} 64. Rg6+ {[%clk 0:00:21.7]}
64... Kb7 {[%clk 0:00:07.9]} 65. Rxa6 {[%clk 0:00:19.4]} 65... Kxa6 {[%clk
0:00:07.8]} 66. Kc5 {[%clk 0:00:18.5]} 66... Kb7 {[%clk 0:00:07.7]} 67. Kd6
{[%clk 0:00:18.1]} 67... Kc8 {[%clk 0:00:06.8]} 68. Kc6 {[%clk 0:00:17.4]} 68...
Kb8 {[%clk 0:00:06.3]} 69. Kd7 {[%clk 0:00:16.3]} 69... Kb7 {[%clk 0:00:05.6]}
70. c5 {[%clk 0:00:15.9]} 1-0